[Event "DVM U20w 2021"]
[Site "Kiel"]
[Date "2022.07.25"]
[Round "6"]
[White "Rudolph, Eva"]
[Black "Peglau, Sarah"]
[Result "1-0"]
[ECO "C10"]
[WhiteElo "1892"]
[BlackElo "1782"]
[Annotator "NA RC COMBH"]
[PlyCount "133"]
[EventDate "2022.07.23"]
[EventType "team-tourn"]
[EventRounds "7"]
[EventCountry "GER"]
[SourceTitle "playchess.com"]
[Source "ChessBase"]
[SourceQuality "1"]
[TimeControl "40/5400+30:1800+30"]

1. e4 {[%emt 0:00:02]} e6 {[%emt 0:00:22]} 2. d4 {[%emt 0:00:09]} d5 {[%emt 0:00:02]} 3. Nd2 {[%emt 0:00:06]} dxe4 {[%emt 0:00:28]} 4. Nxe4 {[%emt 0:00:07]} b6 {[%emt 0:00:21]} 5. Bd3 {[%emt 0:01:25]} Bb7 {[%emt 0:02:02]} 6. Nf3 {[%emt 0:03:12]} Nd7 {[%emt 0:00:39]} 7. O-O {[%emt 0:02:10]} Ngf6 {[%emt 0:00:53]} 8. Qe2 {[%emt 0:01:54]} Be7 {[%emt 0:02:24]} 9. c3 {[%emt 0:06:40]} O-O {[%emt 0:00:54]} 10. Nxf6+ {[%emt 0:05:34]} Nxf6 {[%emt 0:01:28]} 11. Re1 {[%emt 0:01:22]} Rc8 {[%emt 0:07:27]} 12. Bf4 {[%emt 0:06:58]} c5 {[%emt 0:04:41]} 13. dxc5 {[%emt 0:05:33]} Bxc5 {[%emt 0:02:19]} 14. Rad1 {[%emt 0:02:25]} Nd5 {[%emt 0:09:35]} 15. Bg3 {[%emt 0:01:00]} Qe7 {[%emt 0:01:45]} 16. Bh4 {[%emt 0:08:31]} Qc7 {[%emt 0:06:23]} 17. Bg3 {[%emt 0:09:45]} Qe7 {[%emt 0:06:20]} 18. Bc4 {[%emt 0:08:11]} Rfd8 {[%emt 0:05:48]} 19. Bh4 {[%emt 0:02:26]} Nf6 {[%emt 0:01:56]} 20. Ne5 {[%emt 0:01:45]} Rxd1 {[%emt 0:05:04]} 21. Rxd1 {[%emt 0:01:21]} Qe8 {[%emt 0:31:39]} 22. Bb5 {[%emt 0:12:58]} Qf8 {[%emt 0:03:31]} 23. Bxf6 {[%emt 0:05:04]} gxf6 {[%emt 0:00:02]} 24. Rd7 {[%emt 0:04:05]} fxe5 {[%emt 0:03:17]} 25. Rxb7 {[%emt 0:00:07]} Qh6 {[%emt 0:02:45]} 26. Qxe5 {[%emt 0:04:32]} Qd2 {[%emt 0:00:50]} 27. Qf6 {[%emt 0:01:28]} Rf8 {[%emt 0:00:29]} 28. b4 {[%emt 0:02:02]} Qd1+ {[%emt 0:00:28]} 29. Bf1 {[%emt 0:00:01]} Bd6 {[%emt 0:00:06]} 30. Qg5+ {[%emt 0:01:27]} Kh8 {[%emt 0:00:05]} 31. Qh4 {[%emt 0:00:49]} Qd2 {[%emt 0:01:09]} 32. Qf6+ {[%emt 0:00:48]} Kg8 {[%emt 0:00:01]} 33. Rxa7 {[%emt 0:00:15]} Qf4 {[%emt 0:01:15]} 34. Qxf4 {[%emt 0:02:01]} Bxf4 {[%emt 0:00:01]} 35. a4 {[%emt 0:00:32]} Bd2 {[%emt 0:00:28]} 36. Rc7 {[%emt 0:00:21]} Ra8 {[%emt 0:00:44]} 37. Bb5 {[%emt 0:00:27]} Kg7 {[%emt 0:00:30]} 38. g3 {[%emt 0:00:32]} Kf6 {[%emt 0:00:30]} 39. Kg2 {[%emt 0:00:19]} Rd8 {[%emt 0:00:35]} 40. Rc6 {[%emt 0:00:51]} Rb8 {[%emt 0:00:25]} 41. Bd3 {[%emt 0:31:07]} h6 {[%emt 0:30:29]} 42. Kf3 {[%emt 0:00:00]} Ke5 {[%emt 0:00:00]} 43. Ke2 {[%emt 0:00:00]} Bc1 {[%emt 0:00:00]} 44. f4+ {[%emt 0:00:00]} Kd5 {[%emt 0:00:00]} 45. Rc7 {[%emt 0:00:00]} Rf8 {[%emt 0:00:00]} 46. Rb7 {[%emt 0:00:00]} e5 {[%emt 0:00:00]} 47. fxe5 {[%emt 0:00:00]} Re8 {[%emt 0:00:00]} 48. Rxb6 {[%emt 0:00:00]} Rxe5+ {[%emt 0:00:00]} 49. Kd1 {[%emt 0:00:00]} Be3 {[%emt 0:00:00]} 50. Rb5+ {[%emt 0:00:00]} Kd6 {[%emt 0:00:00]} 51. Rxe5 {[%emt 0:00:00]} Kxe5 {[%emt 0:00:00]} 52. Kc2 {[%emt 0:00:00]} Bg1 {[%emt 0:00:00]} 53. h3 {[%emt 0:00:00]} Bf2 {[%emt 0:00:00]} 54. g4 {[%emt 0:00:00]} Kf4 {[%emt 0:00:00]} 55. a5 {[%emt 0:00:00]} Kg3 {[%emt 0:00:00]} 56. Bf1 {[%emt 0:00:00]} Be3 {[%emt 0:03:09]} 57. Kb3 {[%emt 0:00:00]} Kf2 {[%emt 0:00:25]} 58. Bc4 {[%emt 0:00:00]} f6 {[%emt 0:00:14]} 59. b5 {[%emt 0:00:00]} Kg3 {[%emt 0:00:07]} 60. Kb4 {[%emt 0:00:00]} Kxh3 {[%emt 0:00:11]} 61. Be6 {[%emt 0:00:00]} Kh4 {[%emt 0:00:43]} 62. b6 {[%emt 0:00:00]} h5 {[%emt 0:00:13]} 63. gxh5 {[%emt 0:00:00]} Kxh5 {[%emt 0:00:07]} 64. Kb5 {[%emt 0:00:00]} Kg5 {[%emt 0:00:18]} 65. a6 {[%emt 0:00:00]} f5 {[%emt 0:00:06]} 66. a7 {[%emt 0:00:00]} f4 {[%emt 0:00:17]} 67. a8=Q {[%emt 0:00:00]} 1-0

[Event "DVM U20w 2021"]
[Site "Kiel"]
[Date "2022.07.25"]
[Round "6"]
[White "Peglau, Charis"]
[Black "Sereda, Yaroslava"]
[Result "0-1"]
[ECO "D40"]
[WhiteElo "1870"]
[BlackElo "1781"]
[Annotator "NA RC COMBH"]
[PlyCount "120"]
[EventDate "2022.07.23"]
[EventType "team-tourn"]
[EventRounds "7"]
[EventCountry "GER"]
[SourceTitle "playchess.com"]
[Source "ChessBase"]
[SourceQuality "1"]
[TimeControl "40/5400+30:1800+30"]

1. d4 {[%emt 0:00:04]} d5 {[%emt 0:00:14]} 2. c4 {[%emt 0:00:08]} e6 {[%emt 0:00:10]} 3. e3 {[%emt 0:00:05]} Nf6 {[%emt 0:00:45]} 4. Nf3 {[%emt 0:00:07]} c5 {[%emt 0:12:50]} 5. Nc3 {[%emt 0:00:16]} cxd4 {[%emt 0:05:33]} 6. exd4 {[%emt 0:01:55]} Nc6 {[%emt 0:01:11]} 7. Bg5 {[%emt 0:07:20]} Be7 {[%emt 0:03:53]} 8. a3 {[%emt 0:03:10]} O-O {[%emt 0:06:05]} 9. c5 {[%emt 0:08:15]} Ne4 {[%emt 0:11:34]} 10. Bxe7 {[%emt 0:01:13]} Qxe7 {[%emt 0:00:24]} 11. Bd3 {[%emt 0:02:21]} Nxc3 {[%emt 0:02:06]} 12. bxc3 {[%emt 0:00:08]} e5 {[%emt 0:01:13]} 13. Be2 {[%emt 0:14:36]} e4 {[%emt 0:07:30]} 14. Nd2 {[%emt 0:00:07]} Qg5 {[%emt 0:05:29]} 15. g3 {[%emt 0:16:42]} Bh3 {[%emt 0:11:21]} 16. Bf1 {[%emt 0:03:25]} Qh6 {[%emt 0:05:38]} 17. Bxh3 {[%emt 0:12:42]} Qxh3 {[%emt 0:00:09]} 18. Qe2 {[%emt 0:00:10]} Rae8 {[%emt 0:04:42]} 19. Nb3 {[%emt 0:02:59]} f5 {[%emt 0:08:57]} 20. O-O-O {[%emt 0:06:36]} f4 {[%emt 0:06:03]} 21. c4 {[%emt 0:10:44]} Qe6 {[%emt 0:00:49]} 22. Rhe1 {[%emt 0:02:47]} dxc4 {[%emt 0:04:08]} 23. d5 {[%emt 0:00:57]} Qh6 {[%emt 0:00:17]} 24. Kb1 {[%emt 0:04:37]} cxb3 {[%emt 0:00:36]} 25. dxc6 {[%emt 0:00:07]} Qxc6 {[%emt 0:00:34]} 26. Qc4+ {[%emt 0:00:20]} Kh8 {[%emt 0:00:35]} 27. Rd6 {[%emt 0:01:01]} Qc8 {[%emt 0:00:19]} 28. Kb2 {[%emt 0:00:43]} fxg3 {[%emt 0:00:32]} 29. fxg3 {[%emt 0:00:36]} Rf2+ {[%emt 0:00:31]} 30. Kxb3 {[%emt 0:00:06]} Qf5 {[%emt 0:00:27]} 31. Ka4 {[%emt 0:00:51]} a6 {[%emt 0:00:48]} 32. Rb6 {[%emt 0:00:34]} Qd7+ {[%emt 0:00:16]} 33. c6 {[%emt 0:00:18]} bxc6 {[%emt 0:00:17]} 34. Qxc6 {[%emt 0:00:24]} Qxc6+ {[%emt 0:00:44]} 35. Rxc6 {[%emt 0:00:01]} h6 {[%emt 0:00:12]} 36. Rxa6 {[%emt 0:01:03]} e3 {[%emt 0:00:25]} 37. Kb3 {[%emt 0:00:33]} Rxh2 {[%emt 0:00:48]} 38. Kc3 {[%emt 0:00:41]} Rg2 {[%emt 0:01:00]} 39. Rg6 {[%emt 0:00:32]} Kh7 {[%emt 0:00:03]} 40. Rg4 {[%emt 0:00:19]} h5 {[%emt 0:00:41]} 41. Rh4 {[%emt 0:30:56]} Kg6 {[%emt 0:04:07]} 42. Rh3 {[%emt 0:00:00]} Kg5 {[%emt 0:04:32]} 43. a4 {[%emt 0:00:00]} e2 {[%emt 0:08:37]} 44. Kd2 {[%emt 0:00:00]} g6 {[%emt 0:00:47]} 45. Rhh1 {[%emt 0:00:00]} Rxg3 {[%emt 0:08:41]} 46. a5 {[%emt 0:00:00]} Ra3 {[%emt 0:00:52]} 47. Ra1 {[%emt 0:00:00]} Rxa1 {[%emt 0:00:46]} 48. Rxa1 {[%emt 0:00:00]} Kf4 {[%emt 0:01:19]} 49. a6 {[%emt 0:00:00]} Kf3 {[%emt 0:01:53]} 50. Ke1 {[%emt 0:00:00]} h4 {[%emt 0:01:01]} 51. a7 {[%emt 0:00:00]} Ra8 {[%emt 0:00:59]} 52. Ra2 {[%emt 0:00:00]} g5 {[%emt 0:02:01]} 53. Ra3+ {[%emt 0:00:00]} Kg2 {[%emt 0:00:27]} 54. Kxe2 {[%emt 0:00:00]} h3 {[%emt 0:00:56]} 55. Ra2 {[%emt 0:00:00]} g4 {[%emt 0:00:22]} 56. Ke1+ {[%emt 0:00:00]} Kg1 {[%emt 0:00:41]} 57. Ra3 {[%emt 0:00:00]} Re8+ {[%emt 0:00:30]} 58. Kd2 {[%emt 0:00:00]} h2 {[%emt 0:00:31]} 59. a8=Q {[%emt 0:00:00]} Rxa8 {[%emt 0:00:04]} 60. Rxa8 {[%emt 0:00:00]} h1=Q {[%emt 0:00:13]} 0-1

[Event "DVM U20w 2021"]
[Site "Kiel"]
[Date "2022.07.25"]
[Round "6"]
[White "Brunner, Sophia"]
[Black "Tabakh, Najat"]
[Result "1-0"]
[ECO "A40"]
[WhiteElo "1804"]
[BlackElo "1313"]
[Annotator "NA RC COMBH"]
[PlyCount "105"]
[EventDate "2022.07.23"]
[EventType "team-tourn"]
[EventRounds "7"]
[EventCountry "GER"]
[SourceTitle "playchess.com"]
[Source "ChessBase"]
[SourceQuality "1"]
[TimeControl "40/5400+30:1800+30"]

1. d4 {[%emt 0:00:05]} e5 {[%emt 0:00:24]} 2. d5 {[%emt 0:00:36]} Bc5 {[%emt 0:00:34]} 3. e4 {[%emt 0:06:11]} Qh4 {[%emt 0:04:01]} 4. Qe2 {[%emt 0:04:43]} Nf6 {[%emt 0:02:06]} 5. Nd2 {[%emt 0:00:49]} d6 {[%emt 0:04:12]} 6. g3 {[%emt 0:06:54]} Qg4 {[%emt 0:02:01]} 7. h3 {[%emt 0:04:38]} Qxe2+ {[%emt 0:05:15]} 8. Nxe2 {[%emt 0:00:53]} Na6 {[%emt 0:00:45]} 9. c3 {[%emt 0:00:19]} c6 {[%emt 0:00:59]} 10. Bg2 {[%emt 0:05:31]} Nc7 {[%emt 0:04:05]} 11. dxc6 {[%emt 0:02:18]} bxc6 {[%emt 0:00:24]} 12. b4 {[%emt 0:00:43]} Bb6 {[%emt 0:00:36]} 13. Nc4 {[%emt 0:00:26]} Ke7 {[%emt 0:06:20]} 14. f4 {[%emt 0:10:25]} Nd7 {[%emt 0:02:46]} 15. Be3 {[%emt 0:17:39]} Bxe3 {[%emt 0:05:21]} 16. Nxe3 {[%emt 0:00:08]} Bb7 {[%emt 0:00:48]} 17. Nf5+ {[%emt 0:00:47]} Kf6 {[%emt 0:02:42]} 18. Nxd6 {[%emt 0:00:43]} Ba6 {[%emt 0:00:24]} 19. Nf5 {[%emt 0:00:55]} Bxe2 {[%emt 0:01:46]} 20. Kxe2 {[%emt 0:00:12]} Nb5 {[%emt 0:01:49]} 21. c4 {[%emt 0:10:53]} Nc7 {[%emt 0:04:46]} 22. Rhd1 {[%emt 0:00:46]} Nb6 {[%emt 0:07:10]} 23. c5 {[%emt 0:07:42]} Nc8 {[%emt 0:01:55]} 24. Ne3 {[%emt 0:01:06]} exf4 {[%emt 0:01:10]} 25. gxf4 {[%emt 0:00:12]} g6 {[%emt 0:00:14]} 26. e5+ {[%emt 0:00:24]} Kg7 {[%emt 0:00:15]} 27. Bxc6 {[%emt 0:00:11]} Rb8 {[%emt 0:00:17]} 28. a3 {[%emt 0:00:52]} Ne6 {[%emt 0:01:38]} 29. Kf3 {[%emt 0:00:43]} Ne7 {[%emt 0:02:25]} 30. Be4 {[%emt 0:01:19]} Rhf8 {[%emt 0:04:13]} 31. Rd7 {[%emt 0:01:16]} Nc8 {[%emt 0:00:47]} 32. Nc4 {[%emt 0:05:02]} Rd8 {[%emt 0:02:37]} 33. Rad1 {[%emt 0:00:17]} Rxd7 {[%emt 0:00:50]} 34. Rxd7 {[%emt 0:00:06]} Kg8 {[%emt 0:02:09]} 35. Bb7 {[%emt 0:02:48]} h5 {[%emt 0:00:27]} 36. Bxc8 {[%emt 0:01:43]} Rxc8 {[%emt 0:00:08]} 37. Rxa7 {[%emt 0:01:01]} Rd8 {[%emt 0:00:34]} 38. Nd6 {[%emt 0:00:08]} Rf8 {[%emt 0:00:36]} 39. Ke4 {[%emt 0:00:32]} Nd8 {[%emt 0:00:53]} 40. b5 {[%emt 0:01:44]} f6 {[%emt 0:00:42]} 41. c6 {[%emt 0:31:04]} Ne6 {[%emt 0:30:29]} 42. c7 {[%emt 0:00:37]} f5+ {[%emt 0:01:07]} 43. Ke3 {[%emt 0:00:12]} Nxc7 {[%emt 0:00:40]} 44. Rxc7 {[%emt 0:00:04]} h4 {[%emt 0:00:24]} 45. b6 {[%emt 0:00:06]} Ra8 {[%emt 0:00:10]} 46. Rc8+ {[%emt 0:00:10]} Rxc8 {[%emt 0:00:06]} 47. Nxc8 {[%emt 0:00:04]} Kf7 {[%emt 0:00:07]} 48. b7 {[%emt 0:00:04]} Ke6 {[%emt 0:00:06]} 49. b8=Q {[%emt 0:00:04]} Kf7 {[%emt 0:00:06]} 50. Qd6 {[%emt 0:00:18]} Kg7 {[%emt 0:00:18]} 51. Qf6+ {[%emt 0:00:10]} Kh7 {[%emt 0:00:10]} 52. Ne7 {[%emt 0:00:07]} Kh6 {[%emt 0:00:14]} 53. Qxg6# {[%emt 0:00:37]} 1-0

[Event "DVM U20w 2021"]
[Site "Kiel"]
[Date "2022.07.25"]
[Round "6"]
[White "Albayrak, Nese Pinar"]
[Black "Fock, Sana"]
[Result "1-0"]
[ECO "B92"]
[WhiteElo "1651"]
[BlackElo "1807"]
[Annotator "NA RC COMBH"]
[PlyCount "63"]
[EventDate "2022.07.23"]
[EventType "team-tourn"]
[EventRounds "7"]
[EventCountry "GER"]
[SourceTitle "playchess.com"]
[Source "ChessBase"]
[SourceQuality "1"]
[TimeControl "40/5400+30:1800+30"]

1. e4 {[%emt 0:00:03]} c5 {[%emt 0:00:04]} 2. Nf3 {[%emt 0:00:04]} d6 {[%emt 0:00:07]} 3. d4 {[%emt 0:00:07]} cxd4 {[%emt 0:00:07]} 4. Nxd4 {[%emt 0:00:05]} Nf6 {[%emt 0:00:08]} 5. Nc3 {[%emt 0:00:09]} a6 {[%emt 0:00:14]} 6. Be2 {[%emt 0:00:18]} e5 {[%emt 0:00:06]} 7. Nb3 {[%emt 0:00:07]} Be7 {[%emt 0:00:23]} 8. Be3 {[%emt 0:00:16]} Be6 {[%emt 0:01:24]} 9. Nd5 {[%emt 0:00:28]} Bxd5 {[%emt 0:01:37]} 10. exd5 {[%emt 0:00:03]} Nbd7 {[%emt 0:02:15]} 11. Qd2 {[%emt 0:04:08]} b6 {[%emt 0:06:36]} 12. O-O-O {[%emt 0:04:51]} O-O {[%emt 0:02:43]} 13. g4 {[%emt 0:07:44]} a5 {[%emt 0:03:57]} 14. a4 {[%emt 0:05:09]} Rc8 {[%emt 0:04:15]} 15. f3 {[%emt 0:04:33]} Qc7 {[%emt 0:03:51]} 16. c3 {[%emt 0:08:46]} Qb7 {[%emt 0:09:11]} 17. h4 {[%emt 0:03:19]} Nb8 {[%emt 0:03:26]} 18. h5 {[%emt 0:05:25]} Nfd7 {[%emt 0:07:02]} 19. g5 {[%emt 0:02:59]} g6 {[%emt 0:20:14]} 20. hxg6 {[%emt 0:02:08]} fxg6 {[%emt 0:02:49]} 21. f4 {[%emt 0:03:51]} Na6 {[%emt 0:04:23]} 22. Bg4 {[%emt 0:01:08]} Nac5 {[%emt 0:02:16]} 23. Nxc5 {[%emt 0:00:17]} Nxc5 {[%emt 0:06:09]} 24. Bxc5 {[%emt 0:01:58]} bxc5 {[%emt 0:02:11]} 25. Be6+ {[%emt 0:00:15]} Rf7 {[%emt 0:00:10]} 26. Qh2 {[%emt 0:04:10]} h5 {[%emt 0:01:55]} 27. gxh6 {[%emt 0:00:39]} Bf8 {[%emt 0:02:20]} 28. f5 {[%emt 0:12:07]} Rb8 {[%emt 0:02:00]} 29. Rd2 {[%emt 0:05:01]} g5 {[%emt 0:03:41]} 30. Qh5 {[%emt 0:00:36]} Qe7 {[%emt 0:00:50]} 31. Qg6+ {[%emt 0:00:47]} Kh8 {[%emt 0:00:06]} 32. Bxf7 {[%emt 0:00:12]} 1-0

[Event "DVM U20w 2021"]
[Site "Kiel"]
[Date "2022.07.25"]
[Round "6"]
[White "Rempe, Mieke"]
[Black "Schwarzfischer, Julia"]
[Result "1-0"]
[ECO "C70"]
[WhiteElo "1646"]
[BlackElo "1314"]
[Annotator "NA RC COMBH"]
[PlyCount "103"]
[EventDate "2022.07.23"]
[EventType "team-tourn"]
[EventRounds "7"]
[EventCountry "GER"]
[SourceTitle "playchess.com"]
[Source "ChessBase"]
[SourceQuality "1"]
[TimeControl "40/5400+30:1800+30"]

1. e4 {[%emt 0:00:02]} e5 {[%emt 0:00:05]} 2. Nf3 {[%emt 0:00:09]} Nc6 {[%emt 0:00:11]} 3. Bb5 {[%emt 0:00:05]} a6 {[%emt 0:00:06]} 4. Ba4 {[%emt 0:00:06]} b5 {[%emt 0:00:05]} 5. Bb3 {[%emt 0:00:12]} Na5 {[%emt 0:00:12]} 6. O-O {[%emt 0:03:07]} d6 {[%emt 0:00:59]} 7. d4 {[%emt 0:02:18]} Nxb3 {[%emt 0:00:31]} 8. axb3 {[%emt 0:00:38]} exd4 {[%emt 0:00:45]} 9. Qxd4 {[%emt 0:01:23]} Bb7 {[%emt 0:01:29]} 10. Nc3 {[%emt 0:03:28]} Nf6 {[%emt 0:00:48]} 11. Bg5 {[%emt 0:10:51]} Be7 {[%emt 0:03:47]} 12. Nd5 {[%emt 0:06:49]} Nxd5 {[%emt 0:06:24]} 13. Qxg7 {[%emt 0:05:02]} Bf6 {[%emt 0:01:56]} 14. Qxh8+ {[%emt 0:00:56]} Bxh8 {[%emt 0:00:08]} 15. Bxd8 {[%emt 0:00:03]} Kxd8 {[%emt 0:01:11]} 16. exd5 {[%emt 0:00:06]} Bxd5 {[%emt 0:00:34]} 17. Rab1 {[%emt 0:18:43]} Kd7 {[%emt 0:05:49]} 18. Rfe1 {[%emt 0:05:56]} Rg8 {[%emt 0:00:22]} 19. Kf1 {[%emt 0:02:41]} Rg6 {[%emt 0:02:09]} 20. Re3 {[%emt 0:05:29]} f5 {[%emt 0:02:23]} 21. g3 {[%emt 0:06:55]} f4 {[%emt 0:01:27]} 22. gxf4 {[%emt 0:03:07]} Rf6 {[%emt 0:02:03]} 23. Rd1 {[%emt 0:00:49]} c6 {[%emt 0:01:21]} 24. Rde1 {[%emt 0:02:26]} Rh6 {[%emt 0:02:41]} 25. Re7+ {[%emt 0:01:26]} Kc8 {[%emt 0:00:12]} 26. Re8+ {[%emt 0:00:33]} Kb7 {[%emt 0:00:10]} 27. R1e7+ {[%emt 0:00:28]} Kb6 {[%emt 0:00:05]} 28. Rxh8 {[%emt 0:02:30]} Bxf3 {[%emt 0:00:13]} 29. Rhxh7 {[%emt 0:00:17]} Rf6 {[%emt 0:00:14]} 30. h4 {[%emt 0:01:49]} Rxf4 {[%emt 0:02:39]} 31. Rhf7 {[%emt 0:00:21]} Rxf7 {[%emt 0:00:20]} 32. Rxf7 {[%emt 0:00:08]} Be4 {[%emt 0:00:05]} 33. c3 {[%emt 0:01:44]} Bb1 {[%emt 0:00:31]} 34. h5 {[%emt 0:00:32]} Ba2 {[%emt 0:00:17]} 35. Rd7 {[%emt 0:00:36]} Bxb3 {[%emt 0:00:22]} 36. h6 {[%emt 0:00:06]} Bc4+ {[%emt 0:00:14]} 37. Kg1 {[%emt 0:00:09]} Bd3 {[%emt 0:00:09]} 38. Rxd6 {[%emt 0:00:27]} Bb1 {[%emt 0:00:12]} 39. Rd7 {[%emt 0:00:08]} a5 {[%emt 0:00:13]} 40. h7 {[%emt 0:05:29]} Bxh7 {[%emt 0:00:00]} 41. Rxh7 {[%emt 0:30:04]} b4 {[%emt 0:29:47]} 42. cxb4 {[%emt 0:00:05]} axb4 {[%emt 0:00:03]} 43. f4 {[%emt 0:00:06]} Kb5 {[%emt 0:00:04]} 44. f5 {[%emt 0:00:06]} c5 {[%emt 0:00:02]} 45. f6 {[%emt 0:00:06]} c4 {[%emt 0:00:04]} 46. f7 {[%emt 0:00:12]} c3 {[%emt 0:00:11]} 47. bxc3 {[%emt 0:00:16]} bxc3 {[%emt 0:00:05]} 48. f8=Q {[%emt 0:00:06]} c2 {[%emt 0:00:06]} 49. Rc7 {[%emt 0:00:42]} Ka4 {[%emt 0:00:23]} 50. Qa8+ {[%emt 0:00:31]} Kb3 {[%emt 0:01:25]} 51. Qb8+ {[%emt 0:00:07]} Ka2 {[%emt 0:00:04]} 52. Ra7# {[%emt 0:00:05]} 1-0

[Event "DVM U20w 2021"]
[Site "Kiel"]
[Date "2022.07.25"]
[Round "6"]
[White "Rempe, Janne"]
[Black "Weiß, Sara"]
[Result "1-0"]
[ECO "D02"]
[WhiteElo "1497"]
[BlackElo "714"]
[Annotator "NA RC COMBH"]
[PlyCount "51"]
[EventDate "2022.07.23"]
[EventType "team-tourn"]
[EventRounds "7"]
[EventCountry "GER"]
[SourceTitle "playchess.com"]
[Source "ChessBase"]
[SourceQuality "1"]
[TimeControl "40/5400+30:1800+30"]

1. d4 {[%emt 0:00:02]} d5 {[%emt 0:00:16]} 2. Nf3 {[%emt 0:00:06]} Nf6 {[%emt 0:00:29]} 3. Bf4 {[%emt 0:00:05]} g6 {[%emt 0:00:31]} 4. e3 {[%emt 0:00:25]} Bg7 {[%emt 0:00:35]} 5. c3 {[%emt 0:00:10]} O-O {[%emt 0:00:53]} 6. Nbd2 {[%emt 0:00:34]} Bg4 {[%emt 0:04:05]} 7. h3 {[%emt 0:00:24]} Bd7 {[%emt 0:04:06]} 8. Be2 {[%emt 0:00:52]} Na6 {[%emt 0:04:22]} 9. g4 {[%emt 0:01:23]} c5 {[%emt 0:03:10]} 10. Ne5 {[%emt 0:02:32]} Qe8 {[%emt 0:04:24]} 11. h4 {[%emt 0:04:15]} Ba4 {[%emt 0:01:08]} 12. b3 {[%emt 0:00:03]} Bd7 {[%emt 0:01:38]} 13. h5 {[%emt 0:00:54]} g5 {[%emt 0:01:11]} 14. Bxg5 {[%emt 0:00:13]} h6 {[%emt 0:00:29]} 15. Bf4 {[%emt 0:00:08]} Bc6 {[%emt 0:05:42]} 16. g5 {[%emt 0:03:31]} hxg5 {[%emt 0:03:56]} 17. Bxg5 {[%emt 0:00:11]} Nd7 {[%emt 0:02:27]} 18. Nxc6 {[%emt 0:00:37]} bxc6 {[%emt 0:01:28]} 19. Bxa6 {[%emt 0:00:50]} f6 {[%emt 0:04:11]} 20. h6 {[%emt 0:02:13]} fxg5 {[%emt 0:02:30]} 21. hxg7 {[%emt 0:00:05]} Kxg7 {[%emt 0:00:14]} 22. Qg4 {[%emt 0:00:34]} Rg8 {[%emt 0:03:35]} 23. Bd3 {[%emt 0:01:24]} Rh8 {[%emt 0:01:01]} 24. Qxg5+ {[%emt 0:00:15]} Kf8 {[%emt 0:00:37]} 25. Rxh8+ {[%emt 0:00:21]} Kf7 {[%emt 0:00:28]} 26. Qg6# {[%emt 0:31:49]} 1-0

[Event "DVM U20w 2021"]
[Site "Kiel"]
[Date "2022.07.25"]
[Round "6"]
[White "Margaryan, Susanna"]
[Black "Albayrak, Berrak"]
[Result "0-1"]
[ECO "E61"]
[WhiteElo "1436"]
[BlackElo "1592"]
[Annotator "NA RC COMBH"]
[PlyCount "52"]
[EventDate "2022.07.23"]
[EventType "team-tourn"]
[EventRounds "7"]
[EventCountry "GER"]
[SourceTitle "playchess.com"]
[Source "ChessBase"]
[SourceQuality "1"]
[TimeControl "40/5400+30:1800+30"]

1. d4 {[%emt 0:00:04]} Nf6 {[%emt 0:00:05]} 2. c4 {[%emt 0:00:04]} g6 {[%emt 0:00:04]} 3. Nc3 {[%emt 0:00:05]} Bg7 {[%emt 0:00:06]} 4. Nf3 {[%emt 0:00:04]} O-O {[%emt 0:00:13]} 5. e3 {[%emt 0:00:11]} d6 {[%emt 0:00:29]} 6. Be2 {[%emt 0:00:11]} Nbd7 {[%emt 0:01:09]} 7. O-O {[%emt 0:00:27]} e5 {[%emt 0:01:25]} 8. Qc2 {[%emt 0:01:41]} c6 {[%emt 0:02:17]} 9. Rd1 {[%emt 0:00:32]} Qe7 {[%emt 0:08:00]} 10. b4 {[%emt 0:01:57]} Ne8 {[%emt 0:07:55]} 11. a4 {[%emt 0:02:47]} f5 {[%emt 0:03:15]} 12. Ba3 {[%emt 0:03:22]} e4 {[%emt 0:06:53]} 13. Nd2 {[%emt 0:00:16]} Ndf6 {[%emt 0:15:13]} 14. b5 {[%emt 0:02:59]} Nc7 {[%emt 0:04:48]} 15. a5 {[%emt 0:03:07]} Ne6 {[%emt 0:06:55]} 16. Nb3 {[%emt 0:05:05]} Ng5 {[%emt 0:04:35]} 17. b6 {[%emt 0:04:24]} a6 {[%emt 0:02:46]} 18. Na4 {[%emt 0:01:10]} Nd7 {[%emt 0:04:40]} 19. Rac1 {[%emt 0:00:42]} f4 {[%emt 0:00:40]} 20. exf4 {[%emt 0:02:12]} Rxf4 {[%emt 0:00:50]} 21. g3 {[%emt 0:01:30]} Nh3+ {[%emt 0:06:26]} 22. Kg2 {[%emt 0:00:32]} Rxf2+ {[%emt 0:00:11]} 23. Kh1 {[%emt 0:00:25]} Nf6 {[%emt 0:09:56]} 24. Rf1 {[%emt 0:02:29]} e3 {[%emt 0:00:44]} 25. Qd3 {[%emt 0:00:43]} Bf5 {[%emt 0:00:25]} 26. Qd1 {[%emt 0:00:23]} Be4+ {[%emt 0:01:34]} 0-1